fUST/lending_fUST_20240716
["ID","MTS","AMOUNT","RATE_DAILY","PERIOD"]
[332254612,1721095841425,-241.650108,0.00021812,2]
[332254613,1721095841434,-275.00534544,0.00021817,3]
[332254614,1721095841444,-151.0,0.00021817,2]
[332254615,1721095841453,-151.0,0.00021817,2]
[332254616,1721095841464,-241.650108,0.00021817,2]
[332254617,1721095841473,-241.650108,0.00021817,2]
[332254618,1721095841482,-2730.70588421,0.00021817,2]
[332254619,1721095841591,-151.0,0.00021885,2]
[332254620,1721095841601,-151.0,0.00021885,2]
[332254621,1721095841610,-184.0,0.00021887,2]
[332254622,1721095841619,-153.893132,0.00021887,2]
[332254623,1721095841629,-241.650108,0.00021887,2]
[332254624,1721095841638,-241.650101,0.00021887,2]
[332254625,1721095841647,-39045.9028437,0.0002189,3]
[332254626,1721095841656,-6986.23838379,0.00021893,2]
[332254627,1721095841666,-5000.0,0.000219,2]
[332254628,1721095841676,-374.0,0.000219,2]
[332254629,1721095841685,-150.112233,0.000219,2]
[332254630,1721095841695,-748.0,0.000219,2]
[332254631,1721095841705,-270.0,0.000219,2]
[332254632,1721095841714,-150.112233,0.000219,2]
[332254633,1721095841724,-150.112233,0.000219,3]
[332254634,1721095841733,-500.0,0.00021906,2]
[332254635,1721095841743,-280.35332365,0.00021906,2]
[332254636,1721095841752,-500.0,0.00021906,2]
[332254637,1721095841761,-500.0,0.00021906,2]
[332254638,1721095841771,-609.71418819,0.00021906,2]
[332254639,1721095841780,-500.0,0.00021906,2]
[332254640,1721095841790,-500.0,0.00021906,2]
[332254641,1721095841799,-500.0,0.00021906,2]
[332254642,1721095841808,-500.0,0.00021906,2]
[332254643,1721095841818,-500.0,0.00021906,2]
[332254644,1721095841828,-229.61598252,0.00021906,2]
[332254645,1721095841838,-500.0,0.00021906,2]
[332254646,1721095841849,-500.0,0.00021906,2]
[332254647,1721095841860,-500.0,0.00021906,2]
[332254648,1721095841873,-450.0,0.00021906,2]
[332254649,1721095841883,-214.21487126,0.00021906,2]
[332254650,1721095841894,-300.0,0.00021906,2]
[332254651,1721095841904,-300.0,0.00021906,2]
[332254652,1721095841915,-39045.9028437,0.00021907,3]
[332254653,1721095841925,-52164.66014295,0.00021907,3]
[332254654,1721095842312,-3604.62894527,0.00019404,2]
[332254655,1721095842323,-3604.62894527,0.00019502,2]
[332254656,1721095842332,-357.78742068,0.00019589,2]
[332254657,1721095842342,-3604.62894529,0.00019952,2]
[332254658,1721095842351,-357.78742069,0.00019998,2]
[332254659,1721095842360,-136377.93735592,0.00021907,3]
[332254660,1721095842617,-6686.91671913,0.00021907,3]
[332254661,1721095842627,-35621.80567421,0.00021917,5]
[332254662,1721095842638,-1066.73188738,0.00021917,2]
[332254663,1721095842648,-500.0,0.00021917,2]
[332254664,1721095842658,-500.0,0.00021917,2]
[332254665,1721095842668,-520.00209806,0.00021917,2]
[332254666,1721095842677,-500.84950717,0.00021917,2]
[332254667,1721095842688,-500.0,0.00021917,2]
[332254668,1721095842698,-504.27037969,0.00021917,2]
[332254669,1721095842708,-500.0,0.00021917,2]
[332254670,1721095842717,-500.0,0.00021917,2]
[332254671,1721095842728,-500.0,0.00021917,2]
[332254672,1721095842738,-500.0,0.00021917,2]
[332254673,1721095842748,-500.0,0.00021917,2]
[332254674,1721095842758,-500.0,0.00021917,2]
[332254675,1721095842768,-503.11034051,0.00021917,2]
[332254676,1721095842778,-500.0,0.00021917,2]
[332254677,1721095842788,-500.0,0.00021917,2]
[332254678,1721095842799,-505.08404645,0.00021917,2]
[332254679,1721095842808,-500.0,0.00021917,2]
[332254680,1721095842818,-500.0,0.00021917,2]
[332254681,1721095842827,-515.9389757,0.00021917,2]
[332254682,1721095842838,-506.12185183,0.00021917,2]
[332254683,1721095842847,-506.7015894,0.00021917,2]
[332254684,1721095842858,-500.0,0.00021917,2]
[332254686,1721095842871,-500.0,0.00021917,2]
[332254687,1721095842880,-500.0,0.00021917,2]
[332254689,1721095842890,-632.83273028,0.00021917,2]
[332254690,1721095842901,-500.0,0.00021917,2]
[332254691,1721095842911,-500.0,0.00021917,2]
[332254692,1721095842921,-500.0,0.00021917,2]
[332254693,1721095842931,-500.0,0.00021917,2]
[332254694,1721095842946,-500.0,0.00021917,2]
[332254695,1721095842956,-263.50349481,0.00021917,2]
[332254696,1721095842966,-500.0,0.00021917,2]
[332254697,1721095842976,-81.05187493,0.00021917,2]
[332254725,1721095844045,-1.63193698,0.00021917,2]
[332254726,1721095844057,-431.37092296,0.00021917,2]
[332254727,1721095844067,-500.0,0.00021917,2]
[332254728,1721095844076,-500.0,0.00021917,2]
[332254729,1721095844086,-500.0,0.00021917,2]
[332254730,1721095844095,-209.3114139,0.00021917,2]
[332254744,1721095846549,-382.86402946,0.00021917,2]
[332254746,1721095846559,-500.0,0.00021917,2]
[332254747,1721095846568,-504.31993589,0.00021917,2]
[332254749,1721095846578,-523.14614347,0.00021917,2]
[332254750,1721095846589,-500.0,0.00021917,2]
[332254751,1721095846599,-616.0788099,0.00021917,2]
[332254752,1721095846608,-504.55500241,0.00021917,2]
[332254753,1721095846618,-505.74902207,0.00021917,2]
[332254754,1721095846629,-500.0,0.00021917,2]
[332254755,1721095846640,-503.33716421,0.00021917,2]
[332254756,1721095846650,-406.74105623,0.00021917,2]
[332254757,1721095846660,-500.0,0.00021917,2]
[332254758,1721095846670,-500.0,0.00021917,2]
[332254759,1721095846679,-500.0,0.00021917,2]
[332254760,1721095846690,-280.36831304,0.00021917,2]
[332254767,1721095950563,157.67,0.00021908,62]
[332254768,1721095950594,237.96,0.00021908,62]
[332254769,1721095951211,150.5,0.00021908,62]
[332254770,1721095951538,150.5,0.00021908,62]
[332254771,1721095951773,150.5,0.00021898,62]
[332254772,1721095951882,150.5,0.00021898,62]
[332254773,1721095952299,165.31,0.00021888,62]
[332254774,1721095952424,288.87,0.00021888,62]
[332254780,1721096066364,2000.0,0.000225,30]
[332254782,1721096085939,2000.0,0.000225,30]
[332254785,1721096123658,2813.34,0.000225,30]
[332254899,1721097039570,-150.0,0.000204,2]
[332254902,1721097039583,-620.00918019,0.00020429,2]
[332254904,1721097039594,-154.80120009,0.00020545,2]
[332254906,1721097039605,-210.514573,0.00020658,2]
[332254908,1721097039617,-354.61867294,0.00021,2]
[332254910,1721097039627,-476.975261,0.00021096,2]
[332254912,1721097039638,-620.00045901,0.0002145,2]
[332254914,1721097039648,-153.0,0.000215,2]
[332254916,1721097039658,-1407.0,0.00021777,2]
[332254918,1721097039668,-863.09546777,0.00021807,2]
[332254922,1721097039690,-1136.90453223,0.00021807,2]
[332254925,1721097039701,-1283.04137692,0.00021817,2]
[332254927,1721097039711,-1283.04137691,0.00021886,2]
[332254929,1721097039722,-65366.42548104,0.00021893,2]
[332255202,1721097043671,-31003.30261521,0.00021893,2]
[332255204,1721097043683,-5973.38005304,0.00021897,3]
[332255206,1721097043693,-374.0,0.000219,2]
[332255207,1721097043703,-150.112233,0.000219,2]
[332255208,1721097043713,-748.0,0.000219,2]
[332255209,1721097043723,-270.0,0.000219,2]
[332255210,1721097043735,-150.112233,0.000219,3]
[332255211,1721097043748,-1493.34501326,0.00021907,3]
[332255212,1721097043758,-10453.4150928,0.00021907,3]
[332255213,1721097043768,-1493.34501326,0.00021908,3]
[332255214,1721097043779,-500.0,0.00021916,2]
[332255216,1721097043789,-391.51544851,0.00021916,2]
[332255217,1721097043799,-500.0,0.00021916,2]
[332255218,1721097043808,-500.0,0.00021916,2]
[332255219,1721097043818,-472.24406009,0.00021916,2]
[332255220,1721097043828,-500.0,0.00021916,2]
[332255221,1721097043837,-500.0,0.00021916,2]
[332255222,1721097043847,-500.0,0.00021916,2]
[332255223,1721097043857,-500.0,0.00021916,2]
[332255224,1721097043866,-500.0,0.00021916,2]
[332255225,1721097043876,-500.0,0.00021916,2]
[332255226,1721097043886,-500.0,0.00021916,2]
[332255227,1721097043896,-500.0,0.00021916,2]
[332255228,1721097043906,-443.83085378,0.00021916,2]
[332255229,1721097043916,-500.0,0.00021916,2]
[332255230,1721097043925,-500.0,0.00021916,2]
[332255231,1721097043935,-500.0,0.00021916,2]
[332255232,1721097043944,-600.0,0.00021916,2]
[332255233,1721097043954,-368.61017528,0.00021917,5]
[332255234,1721097043964,-1066.9082796,0.00021917,2]
[332255235,1721097043984,-358.70000503,0.00021917,2]
[332255236,1721097044000,-500.0,0.00021917,2]
[332255237,1721097044016,-500.0,0.00021917,2]
[332255238,1721097044035,-500.0,0.00021917,2]
[332255239,1721097044051,-500.0,0.00021917,2]
[332255240,1721097044065,-501.55185026,0.00021917,2]
[332255241,1721097044079,-500.0,0.00021917,2]
[332255242,1721097044093,-500.0,0.00021917,2]
[332255243,1721097044108,-500.0,0.00021917,2]
[332255244,1721097044123,-500.0,0.00021917,2]
[332255245,1721097044136,-500.0,0.00021917,2]
[332255246,1721097044150,-500.0,0.00021917,2]
[332255247,1721097044163,-500.0,0.00021917,2]
[332255248,1721097044178,-500.0,0.00021917,2]
[332255249,1721097044191,-500.0,0.00021917,2]
[332255250,1721097044208,-500.0,0.00021917,2]
[332255251,1721097044220,-505.94212483,0.00021917,2]
[332255252,1721097044232,-501.06274806,0.00021917,2]
[332255253,1721097044244,-500.0,0.00021917,2]
[332255254,1721097044257,-500.0,0.00021917,2]
[332255255,1721097044275,-510.39231164,0.00021917,2]
[332255256,1721097044287,-505.91555841,0.00021917,2]
[332255257,1721097044303,-503.42915223,0.00021917,2]
[332255258,1721097044317,-500.0,0.00021917,2]
[332255259,1721097044332,-500.0,0.00021917,2]
[332255260,1721097044348,-190.10340812,0.00021917,2]
[332255261,1721097044358,-500.0,0.00021917,2]
[332255262,1721097044370,-1500.0,0.00021917,2]
[332255263,1721097044383,-500.0,0.00021917,2]
[332255264,1721097044398,-503.84601786,0.00021917,2]
[332255265,1721097044411,-500.0,0.00021917,2]
[332255266,1721097044423,-500.0,0.00021917,2]
[332255267,1721097044436,-500.8796148,0.00021917,2]
[332255268,1721097044448,-500.0,0.00021917,2]
[332255269,1721097044460,-500.0,0.00021917,2]
[332255270,1721097044472,-500.0,0.00021917,2]
[332255271,1721097044483,-500.0,0.00021917,2]
[332255272,1721097044494,-500.0,0.00021917,2]
[332255273,1721097044506,-536.8669122,0.00021917,2]
[332255274,1721097044520,-505.78670521,0.00021917,2]
[332255275,1721097044535,-500.0,0.00021917,2]
[332255276,1721097044548,-500.0,0.00021917,2]
[332255277,1721097044561,-501.36840778,0.00021917,2]
[332255278,1721097044572,-500.0,0.00021917,2]
[332255279,1721097044583,-500.0,0.00021917,2]
[332255280,1721097044596,-500.0,0.00021917,2]
[332255281,1721097044607,-500.0,0.00021917,2]
[332255282,1721097044619,-500.0,0.00021917,2]
[332255283,1721097044631,-500.0,0.00021917,2]
[332255284,1721097044645,-500.0,0.00021917,2]
[332255285,1721097044656,-500.0,0.00021917,2]
[332255286,1721097044667,-500.0,0.00021917,2]
[332255287,1721097044678,-500.0,0.00021917,2]
[332255288,1721097044690,-500.0,0.00021917,2]
[332255289,1721097044704,-500.0,0.00021917,2]
[332255290,1721097044716,-500.0,0.00021917,2]
[332255291,1721097044729,-500.0,0.00021917,2]
[332255292,1721097044742,-547.91755961,0.00021917,2]
[332255293,1721097044754,-595.54493059,0.00021917,2]
[332255294,1721097044765,-500.0,0.00021917,2]
[332255295,1721097044777,-500.0,0.00021917,2]
[332255296,1721097044788,-536.02868928,0.00021917,2]
[332255297,1721097044800,-500.0,0.00021917,2]
[332255298,1721097044812,-500.0,0.00021917,2]
[332255299,1721097044825,-426.93730892,0.00021917,2]
[332255300,1721097044837,-218.86873745,0.00021917,2]
[332255301,1721097044849,-500.0,0.00021917,2]
[332255302,1721097044861,-500.0,0.00021917,2]
[332255303,1721097044873,-500.0,0.00021917,2]
[332255304,1721097044884,-500.0,0.00021917,2]
[332255305,1721097044896,-500.0,0.00021917,2]
[332255306,1721097044907,-500.0,0.00021917,2]
[332255307,1721097044920,-500.0,0.00021917,2]
[332255308,1721097044933,-500.0,0.00021917,2]
[332255309,1721097044944,-500.0,0.00021917,2]
[332255310,1721097044957,-500.0,0.00021917,2]
[332255311,1721097044968,-500.0,0.00021917,2]
[332255312,1721097044980,-500.0,0.00021917,2]
[332255313,1721097044993,-500.0,0.00021917,2]
[332255314,1721097045006,-200.0,0.00021917,2]
[332255315,1721097045019,-500.0,0.00021917,2]
[332255316,1721097045032,-545.33967861,0.00021917,2]
[332255317,1721097045043,-500.0,0.00021917,2]
[332255318,1721097045055,-500.0,0.00021917,2]
[332255319,1721097045067,-500.0,0.00021917,2]
[332255320,1721097045078,-500.0,0.00021917,2]
[332255321,1721097045090,-500.0,0.00021917,2]
[332255322,1721097045101,-500.0,0.00021917,2]
[332255323,1721097045114,-500.0,0.00021917,2]
[332255324,1721097045126,-505.70217538,0.00021917,2]
[332255325,1721097045137,-500.0,0.00021917,2]
[332255326,1721097045148,-409.47045097,0.00021917,2]
[332255327,1721097045160,-1344.68,0.00021917,2]
[332255328,1721097045173,-507.87180737,0.00021917,2]
[332255329,1721097045182,-500.0,0.00021917,2]
[332255330,1721097045325,-503.40985397,0.00021917,2]
[332255331,1721097045346,-500.0,0.00021917,2]
[332255332,1721097045356,-500.0,0.00021917,2]
[332255333,1721097045366,-500.0,0.00021917,2]
[332255334,1721097045378,-508.31933007,0.00021917,2]
[332255335,1721097045390,-500.0,0.00021917,2]
[332255336,1721097045399,-500.0,0.00021917,2]
[332255337,1721097045409,-500.0,0.00021917,2]
[332255338,1721097045420,-500.0,0.00021917,2]
[332255339,1721097045429,-500.0,0.00021917,2]
[332255340,1721097045440,-500.0,0.00021917,2]
[332255341,1721097045449,-501.65960249,0.00021917,2]
[332255342,1721097045459,-599.44717345,0.00021917,2]
[332255343,1721097045469,-500.0,0.00021917,2]
[332255344,1721097045479,-500.0,0.00021917,2]
[332255345,1721097045488,-500.0,0.00021917,2]
[332255346,1721097045498,-500.0,0.00021917,2]
[332255347,1721097045508,-500.0,0.00021917,2]
[332255348,1721097045518,-500.0,0.00021917,2]
[332255349,1721097045527,-550.67221019,0.00021917,2]
[332255350,1721097045537,-500.0,0.00021917,2]
[332255351,1721097045546,-500.0,0.00021917,2]
[332255352,1721097045556,-500.0,0.00021917,2]
[332255353,1721097045565,-500.0,0.00021917,2]
[332255354,1721097045575,-500.0,0.00021917,2]
[332255355,1721097045584,-500.0,0.00021917,2]
[332255356,1721097045594,-506.37087902,0.00021917,2]
[332255357,1721097045603,-500.0,0.00021917,2]
[332255358,1721097045614,-500.0,0.00021917,2]
[332255359,1721097045624,-500.0,0.00021917,2]
[332255360,1721097045634,-500.0,0.00021917,2]
[332255361,1721097045644,-504.88304749,0.00021917,2]
[332255362,1721097045654,-500.0,0.00021917,2]
[332255363,1721097045663,-501.00216128,0.00021917,2]
[332255364,1721097045674,-503.33369823,0.00021917,2]
[332255365,1721097045683,-500.0,0.00021917,2]
[332255366,1721097045692,-501.03691571,0.00021917,2]
[332255367,1721097045702,-502.52020405,0.00021917,2]
[332255368,1721097045711,-503.74596657,0.00021917,2]
[332255369,1721097045722,-505.91595934,0.00021917,2]
[332255370,1721097045733,-503.22872033,0.00021917,2]
[332255371,1721097045743,-510.44355939,0.00021917,2]
[332255372,1721097045753,-506.64162661,0.00021917,2]
[332255373,1721097045762,-501.40239002,0.00021917,2]
[332255374,1721097045772,-500.0,0.00021917,2]
[332255375,1721097045784,-500.0,0.00021917,2]
[332255376,1721097045793,-501.24717782,0.00021917,2]
[332255377,1721097045803,-521.44693806,0.00021917,2]
[332255378,1721097045813,-500.0,0.00021917,2]
[332255379,1721097045822,-500.0,0.00021917,2]
[332255380,1721097045832,-500.0,0.00021917,2]
[332255381,1721097045841,-82.67013708,0.00021917,2]
[332255382,1721097046024,-1183.88986292,0.00021917,2]
[332255383,1721097046034,-502.30494998,0.00021917,2]
[332255384,1721097046044,-500.0,0.00021917,2]
[332255385,1721097046053,-500.0,0.00021917,2]
[332255386,1721097046062,-300.2551871,0.00021917,2]
[332255387,1721097046074,-199.7448129,0.00021917,2]
[332255388,1721097046084,-500.0,0.00021917,2]
[332255389,1721097046093,-500.0,0.00021917,2]
[332255390,1721097046102,-500.0,0.00021917,2]
[332255391,1721097046113,-440.93752396,0.00021917,2]
[332255415,1721097118618,11677.34480876,0.00024,60]
[332255418,1721097392059,154.62121349,0.00016255,2]
[332255433,1721097608021,154.98222723,0.00016255,2]
[332255437,1721098105470,3767.03,0.00024,120]
[332255513,1721098241062,-177.080782,0.00020559,2]
[332255515,1721098241071,-210.5145734,0.00020768,2]
[332255517,1721098241081,-453.126497,0.00021096,2]
[332255519,1721098241091,-288.59819013,0.00021393,2]
[332255521,1721098241100,-153.6372284,0.000215,2]
[332255523,1721098241110,-360.98739807,0.00021522,2]
[332255525,1721098241119,-360.98739808,0.00021669,2]
[332255527,1721098241129,-1407.0,0.00021787,2]
[332255529,1721098241138,-249.682,0.00021787,2]
[332255531,1721098241148,-8293.669,0.000218,2]
[332255533,1721098241158,-3144.63771123,0.0002181,2]
[332255535,1721098241167,-1675.51965911,0.00021817,2]
[332255537,1721098241177,-3849.12413073,0.00021817,2]
[332255539,1721098241187,-1265.7,0.00021866,2]
[332255541,1721098241196,-151.0,0.00021866,2]
[332255543,1721098241207,-374.0,0.000219,2]
[332255545,1721098241217,-150.112233,0.000219,3]
[332255547,1721098241227,-748.0,0.000219,2]
[332255549,1721098241236,-270.0,0.000219,2]
[332255551,1721098241246,-150.0,0.000219,2]
[332255553,1721098241255,-150.112233,0.000219,2]
[332255555,1721098241264,-150.112233,0.000219,2]
[332255557,1721098241274,-500.0,0.00021906,2]
[332255559,1721098241283,-500.0,0.00021906,2]
[332255561,1721098241292,-500.0,0.00021906,2]
[332255563,1721098241302,-472.24406009,0.00021906,2]
[332255565,1721098241312,-500.0,0.00021906,2]
[332255567,1721098241322,-391.51544851,0.00021906,2]
[332255569,1721098241332,-500.0,0.00021906,2]
[332255571,1721098241341,-500.0,0.00021906,2]
[332255573,1721098241351,-500.0,0.00021906,2]
[332255575,1721098241360,-500.0,0.00021906,2]
[332255577,1721098241370,-500.0,0.00021906,2]
[332255579,1721098241380,-500.0,0.00021906,2]
[332255581,1721098241389,-500.0,0.00021906,2]
[332255583,1721098241399,-500.0,0.00021906,2]
[332255585,1721098241409,-443.83085378,0.00021906,2]
[332255587,1721098241418,-500.0,0.00021906,2]
[332255589,1721098241428,-650.0,0.00021906,2]
[332255591,1721098241437,-500.0,0.00021906,2]
[332255593,1721098241447,-368.61017528,0.00021907,5]
[332255595,1721098241456,-72372.62035659,0.00021907,3]
[332255598,1721098241469,-37715.26842421,0.00021907,3]
[332255742,1721098243964,-1940.93752396,0.00021907,3]
[332255783,1721099387156,195.0,0.00018,2]
[332255785,1721099412606,16.51468843,0.00019164,2]
[332255823,1721099440387,-2728.94686029,0.00019164,2]
[332255824,1721099440397,-150.0,0.00019807,2]
[332255825,1721099440409,-1265.7,0.00021075,2]
[332255826,1721099440419,-151.0,0.00021075,2]
[332255829,1721099440430,-803.82340667,0.00021095,2]
[332255830,1721099440440,-430.470172,0.00021096,2]
[332255831,1721099440450,-620.00002295,0.00021397,2]
[332255832,1721099440459,-1407.0,0.00021398,2]
[332255833,1721099440468,-1265.7,0.00021458,2]
[332255834,1721099440478,-151.0,0.00021458,2]
[332255835,1721099440488,-769.82482617,0.00021808,2]
[332255836,1721099440498,-1675.51965911,0.00021808,2]
[332255837,1721099440508,-769.82482614,0.0002181,2]
[332255838,1721099440517,-769.82482614,0.00021813,2]
[332255839,1721099440527,-769.82482614,0.00021815,2]
[332255840,1721099440537,-769.82482614,0.00021817,2]
[332255841,1721099440547,-1265.7,0.0002184,2]
[332255842,1721099440556,-151.0,0.0002184,2]
[332255843,1721099440566,-374.0,0.000219,2]
[332255844,1721099440576,-748.0,0.000219,2]
[332255845,1721099440586,-270.0,0.000219,2]
[332255846,1721099440596,-150.112233,0.000219,5]
[332255847,1721099440605,-150.112233,0.000219,4]
[332255848,1721099440614,-150.112233,0.000219,2]
[332255849,1721099440624,-150.112233,0.000219,5]
[332255850,1721099440634,-368.61017528,0.00021907,5]
[332255851,1721099440644,-75501.09573529,0.00021907,3]
[332255975,1721099713567,729.63508326,0.00016255,2]
[332255976,1721099811431,807.07655641,0.00016255,2]
[332256051,1721100344470,803.36733613,0.00016255,2]
[332256052,1721100392879,5079.16143881,0.00016255,2]
[332256071,1721100574854,160.15617871,0.00016255,2]
[332256413,1721100638289,-300.0,0.00020322,2]
[332256415,1721100638300,-11177.28799954,0.00020323,2]
[332256417,1721100638313,-2221.51171616,0.00020323,2]
[332256419,1721100638325,-949.2,0.00020777,2]
[332256421,1721100638335,-600.0,0.0002104,2]
[332256423,1721100638346,-408.946663,0.00021096,2]
[332256425,1721100638357,-949.2,0.00021152,2]
[332256428,1721100638368,-150.56477222,0.00021207,2]
[332256429,1721100638377,-745.54766094,0.00021259,2]
[332256431,1721100638387,-354.02259846,0.00021382,2]
[332256433,1721100638398,-949.2,0.00021527,2]
[332256435,1721100638408,-293.5691494,0.00021573,2]
[332256437,1721100638418,-293.5691494,0.00021573,2]
[332256439,1721100638427,-293.5691494,0.00021573,2]
[332256441,1721100638437,-293.5691494,0.00021573,2]
[332256443,1721100638450,-293.5691494,0.00021573,2]
[332256445,1721100638460,-293.5691494,0.00021573,2]
[332256447,1721100638470,-293.5691494,0.00021573,2]
[332256449,1721100638480,-293.5691494,0.00021573,2]
[332256451,1721100638490,-293.5691494,0.00021573,2]
[332256453,1721100638500,-293.5691494,0.00021573,2]
[332256455,1721100638511,-293.5691494,0.00021574,2]
[332256457,1721100638524,-150.02225786,0.00021574,2]
[332256576,1721100640391,-143.54689154,0.00021574,2]
[332256578,1721100640401,-5297.37845972,0.00021613,2]
[332256580,1721100640413,-1466.07970173,0.00021707,2]
[332256582,1721100640423,-1407.0,0.00021788,2]
[332256584,1721100640434,-2000.0,0.00021807,2]
[332256587,1721100640446,-663.02541101,0.00021817,2]
[332256589,1721100640460,-374.0,0.000219,2]
[332256591,1721100640470,-150.112233,0.000219,4]
[332256593,1721100640480,-150.112233,0.000219,3]
[332256595,1721100640490,-4077.989772,0.000219,2]
[332256597,1721100640501,-150.112233,0.000219,2]
[332256599,1721100640511,-949.2,0.00021902,2]
[332256601,1721100640521,-3696.9,0.00021907,3]
[332256603,1721100640534,-391.51544851,0.00021916,2]
[332256605,1721100640545,-500.0,0.00021916,2]
[332256607,1721100640554,-500.0,0.00021916,2]
[332256609,1721100640564,-500.0,0.00021916,2]
[332256611,1721100640574,-472.24406009,0.00021916,2]
[332256613,1721100640585,-443.83085378,0.00021916,2]
[332256615,1721100640594,-500.0,0.00021916,2]
[332256617,1721100640603,-500.0,0.00021916,2]
[332256619,1721100640612,-500.0,0.00021916,2]
[332256621,1721100640622,-500.0,0.00021916,2]
[332256623,1721100640632,-500.0,0.00021916,2]
[332256625,1721100640642,-500.0,0.00021916,2]
[332256627,1721100640651,-500.0,0.00021916,2]
[332256629,1721100640660,-500.0,0.00021916,2]
[332256631,1721100640669,-500.0,0.00021916,2]
[332256633,1721100640679,-500.0,0.00021916,2]
[332256635,1721100640688,-500.0,0.00021916,2]
[332256637,1721100640697,-368.61017528,0.00021917,5]
[332256639,1721100640707,-1066.9082796,0.00021917,2]
[332256641,1721100640716,-500.0,0.00021917,2]
[332256643,1721100640725,-503.19605554,0.00021917,2]
[332256645,1721100640735,-358.70000503,0.00021917,2]
[332256647,1721100640744,-500.0,0.00021917,2]
[332256649,1721100640754,-501.15981291,0.00021917,2]
[332256651,1721100640763,-500.0,0.00021917,2]
[332256653,1721100640773,-500.0,0.00021917,2]
[332256655,1721100640783,-500.0,0.00021917,2]
[332256657,1721100640792,-503.18287117,0.00021917,2]
[332256659,1721100640801,-500.0,0.00021917,2]
[332256661,1721100640811,-500.0,0.00021917,2]
[332256663,1721100640820,-500.0,0.00021917,2]
[332256666,1721100640830,-500.0,0.00021917,2]
[332256667,1721100640839,-500.0,0.00021917,2]
[332256669,1721100640848,-500.0,0.00021917,2]
[332256671,1721100640857,-500.0,0.00021917,2]
[332256673,1721100640867,-500.0,0.00021917,2]
[332256675,1721100640878,-500.0,0.00021917,2]
[332256677,1721100640887,-500.0,0.00021917,2]
[332256679,1721100640896,-500.0,0.00021917,2]
[332256681,1721100640905,-500.0,0.00021917,2]
[332256683,1721100640915,-532.78788961,0.00021917,2]
[332256685,1721100640924,-500.0,0.00021917,2]
[332256687,1721100640934,-500.0,0.00021917,2]
[332256689,1721100640944,-500.0,0.00021917,2]
[332256691,1721100640953,-500.0,0.00021917,2]
[332256693,1721100640963,-510.39231164,0.00021917,2]
[332256694,1721100640972,-500.0,0.00021917,2]
[332256697,1721100640982,-500.0,0.00021917,2]
[332256699,1721100640991,-500.0,0.00021917,2]
[332256700,1721100641001,-500.0,0.00021917,2]
[332256702,1721100641010,-501.55185026,0.00021917,2]
[332256704,1721100641019,-505.94212483,0.00021917,2]
[332256706,1721100641029,-500.0,0.00021917,2]
[332256708,1721100641039,-500.0,0.00021917,2]
[332256710,1721100641049,-500.0,0.00021917,2]
[332256712,1721100641058,-500.0,0.00021917,2]
[332256714,1721100641067,-500.0,0.00021917,2]
[332256716,1721100641077,-500.0,0.00021917,2]
[332256718,1721100641090,-536.8669122,0.00021917,2]
[332256720,1721100641100,-505.91555841,0.00021917,2]
[332256722,1721100641110,-500.0,0.00021917,2]
[332256724,1721100641120,-190.10340812,0.00021917,2]
[332256726,1721100641129,-500.0,0.00021917,2]
[332256728,1721100641139,-500.0,0.00021917,2]
[332256729,1721100641148,-500.0,0.00021917,2]